{"text_format":"1","workbook":"xlsx","n_sheets":1,"sheets":["Sheet1"],"not_rendered":{"charts":0,"images":0,"macros":1,"external_links":0,"defined_names":0,"comments":0,"pivot_tables":0},"unopened":[],"bounds":{"document_bytes":16777216,"sheet_cells":100000,"rows_first":2000,"rows_last":500,"rows_between":2000,"halvings":0,"cell_chars":16384,"cell_head_chars":4096},"cells_cut":0,"cells_raw":0,"read":"whole","date_system":"1900"}

{"sheet":"Sheet1","index":0,"n_rows":25,"n_cols":7,"rows_kept":25,"cut":false,"hidden":false,"merged":[]}
["File Name","Reference","Combined","Column1"]
["file1","A","file1-A",null,{"$f":"A2&\"-\"&B$2","v":"file1-A"},{"$f":"A2&\"-\"&B$3","v":"file1-B"},{"$f":"A2&\"-\"&B$4","v":"file1-C"}]
["file2","B","file2-A",null,{"$f":"A3&\"-\"&B$2","v":"file2-A"},{"$f":"A3&\"-\"&B$3","v":"file2-B"},{"$f":"A3&\"-\"&B$4","v":"file2-C"}]
["file3","C","file3-A",null,"file3-A","file3-B","file3-C"]
["file4",null,"file4-A",null,"file4-A","file4-B","file4-C"]
["file5",null,"file5-A",null,"file5-A","file5-B","file5-C"]
["file6",null,"file6-A",null,"file6-A","file6-B","file6-C"]
["file7",null,"file7-A",null,"file7-A","file7-B","file7-C"]
[null,null,"54545-A"]
[null,null,"file1-B"]
[null,null,"file2-B"]
[null,null,"file3-B"]
[null,null,"file4-B"]
[null,null,"file5-B"]
[null,null,"file6-B"]
[null,null,"file7-B"]
[null,null,"54545-B"]
[null,null,"file1-C"]
[null,null,"file2-C"]
[null,null,"file3-C"]
[null,null,"file4-C"]
[null,null,"file5-C"]
[null,null,"file6-C"]
[null,null,"file7-C"]
[null,null,"54545-C"]